[Event "80th ARM-ch 1st League 2019"]
[Site "Yerevan"]
[Date "2019.08.26"]
[Round "8.4"]
[White "Harutyunian, Tigran K."]
[Black "Sargsyan, Shant"]
[Result "0-1"]
[ECO "A20"]
[WhiteElo "2555"]
[BlackElo "2540"]
[Annotator "ChessBase"]
[PlyCount "102"]
[EventDate "2019.08.18"]
[EventType "tourn"]
[EventCountry "ARM"]
[SourceTitle "playchess.com"]
[Source "ChessBase"]
[SourceQuality "1"]
[TimeControl "40/5400+30:1800+30"]

1. c4 {[%emt 0:00:00]} e5 {[%emt 0:07:39]} 2. g3 {[%emt 0:00:01]} Nf6 {[%emt 0:01:22]} 3. Bg2 {[%emt 0:00:42]} Nc6 {[%emt 0:01:02]} 4. Nf3 {[%emt 0:03:20]} d5 {[%emt 0:02:10]} 5. cxd5 {[%emt 0:00:20]} Nxd5 {[%emt 0:00:02]} 6. O-O {[%emt 0:00:11]} Nb6 {[%emt 0:00:15]} 7. b3 {[%emt 0:00:24]} Bd6 {[%emt 0:03:38]} 8. Bb2 {[%emt 0:00:48]} O-O {[%emt 0:00:15]} 9. Nc3 {[%emt 0:01:00]} Re8 {[%emt 0:01:00]} 10. Rc1 {[%emt 0:05:10]} Bf8 {[%emt 0:03:04]} 11. d3 {[%emt 0:01:54]} Be6 {[%emt 0:04:14]} 12. Ne4 {[%emt 0:00:55]} f6 {[%emt 0:02:28]} 13. Nc5 {[%emt 0:06:40]} Bxc5 {[%emt 0:00:41]} 14. Rxc5 {[%emt 0:00:07]} a5 {[%emt 0:01:30]} 15. d4 {[%emt 0:16:29]} a4 {[%emt 0:09:10]} 16. Qb1 {[%emt 0:12:32]} axb3 {[%emt 0:02:13]} 17. axb3 {[%emt 0:01:13]} exd4 {[%emt 0:02:41]} 18. Rh5 {[%emt 0:05:18]} d3 {[%emt 0:03:41]} 19. exd3 {[%emt 0:04:35]} Bd5 {[%emt 0:05:01]} 20. Rh4 {[%emt 0:07:38]} Qd7 {[%emt 0:05:52]} 21. Rc1 {[%emt 0:06:50]} Re2 {[%emt 0:05:28]} 22. Rf4 {[%emt 0:01:13]} Bxb3 {[%emt 0:10:24]} 23. Nd4 {[%emt 0:10:31]} Ba2 {[%emt 0:04:50]} 24. Qa1 {[%emt 0:00:37]} Bd5 {[%emt 0:03:20]} 25. Qxa8+ {[%emt 0:06:20]} Nxa8 {[%emt 0:00:06]} 26. Nxe2 {[%emt 0:01:16]} Bxg2 {[%emt 0:00:10]} 27. Kxg2 {[%emt 0:00:01]} Qxd3 {[%emt 0:00:47]} 28. Nd4 {[%emt 0:01:52]} g5 {[%emt 0:03:17]} 29. Rf3 {[%emt 0:01:34]} Qe4 {[%emt 0:00:26]} 30. Nxc6 {[%emt 0:00:41]} g4 {[%emt 0:02:29]} 31. Nd4 {[%emt 0:00:27]} Qd5 {[%emt 0:02:56]} 32. Rcc3 {[%emt 0:00:54]} gxf3+ {[%emt 0:01:33]} 33. Rxf3 {[%emt 0:00:06]} Nb6 {[%emt 0:00:46]} 34. Nf5 {[%emt 0:00:15]} Kf7 {[%emt 0:01:07]} 35. Bxf6 {[%emt 0:01:49]} Nc4 {[%emt 0:02:02]} 36. Bc3 {[%emt 0:01:12]} Ke8 {[%emt 0:00:26]} 37. g4 {[%emt 0:00:21]} c5 {[%emt 0:01:04]} 38. Kg3 {[%emt 0:00:15]} b5 {[%emt 0:00:20]} 39. Ng7+ {[%emt 0:01:10]} Kd7 {[%emt 0:00:23]} 40. Nh5 {[%emt 0:00:00]} Qd6+ {[%emt 0:00:00]} 41. Kh4 {[%emt 0:02:00]} Qxh2+ {[%emt 0:02:03]} 42. Kg5 {[%emt 0:01:36]} b4 {[%emt 0:00:33]} 43. Bg7 {[%emt 0:01:54]} Nd6 {[%emt 0:01:45]} 44. Nf4 {[%emt 0:01:41]} h6+ {[%emt 0:00:57]} 45. Kg6 {[%emt 0:00:58]} Qh4 {[%emt 0:00:06]} 46. Nd3 {[%emt 0:01:19]} Qxg4+ {[%emt 0:00:08]} 47. Kh7 {[%emt 0:00:13]} Qe4+ {[%emt 0:00:19]} 48. Kh8 {[%emt 0:00:26]} Kc6 {[%emt 0:00:35]} 49. Re3 {[%emt 0:01:50]} Qf5 {[%emt 0:00:30]} 50. f4 {[%emt 0:00:23]} Kb5 {[%emt 0:00:44]} 51. Nxc5 {[%emt 0:01:48]} Qc8+ {[%emt 0:00:06]} 0-1

[Event "80th ARM-ch 1st League 2019"]
[Site "Yerevan"]
[Date "2019.08.26"]
[Round "8.5"]
[White "Harutjunyan, Gevorg"]
[Black "Baghdasaryan, Vahe"]
[Result "1/2-1/2"]
[ECO "B33"]
[WhiteElo "2455"]
[BlackElo "2373"]
[Annotator "ChessBase"]
[PlyCount "118"]
[EventDate "2019.08.18"]
[EventType "tourn"]
[EventCountry "ARM"]
[SourceTitle "playchess.com"]
[Source "ChessBase"]
[SourceQuality "1"]
[TimeControl "40/5400+30:1800+30"]

1. e4 {[%emt 0:00:00]} c5 {[%emt 0:00:00]} 2. Nf3 {[%emt 0:00:00]} Nc6 {[%emt 0:01:25]} 3. d4 {[%emt 0:00:00]} cxd4 {[%emt 0:00:06]} 4. Nxd4 {[%emt 0:00:03]} Nf6 {[%emt 0:01:34]} 5. Nc3 {[%emt 0:00:10]} e5 {[%emt 0:01:49]} 6. Ndb5 {[%emt 0:00:17]} d6 {[%emt 0:00:08]} 7. Bg5 {[%emt 0:00:48]} a6 {[%emt 0:00:23]} 8. Na3 {[%emt 0:02:25]} Be6 {[%emt 0:01:32]} 9. Nc4 {[%emt 0:02:00]} Rc8 {[%emt 0:06:48]} 10. Ne3 {[%emt 0:00:25]} Nd4 {[%emt 0:10:06]} 11. Bd3 {[%emt 0:04:12]} Be7 {[%emt 0:00:38]} 12. Bxf6 {[%emt 0:00:34]} Bxf6 {[%emt 0:00:24]} 13. Ncd5 {[%emt 0:02:12]} Bg5 {[%emt 0:04:30]} 14. c3 {[%emt 0:01:45]} Bxd5 {[%emt 0:08:10]} 15. Nxd5 {[%emt 0:00:15]} Ne6 {[%emt 0:00:06]} 16. g3 {[%emt 0:01:33]} O-O {[%emt 0:06:47]} 17. O-O {[%emt 0:00:29]} g6 {[%emt 0:06:15]} 18. Qe2 {[%emt 0:13:52]} Kh8 {[%emt 0:10:16]} 19. Rad1 {[%emt 0:04:49]} Qe8 {[%emt 0:12:43]} 20. Bc2 {[%emt 0:05:19]} f5 {[%emt 0:06:43]} 21. f4 {[%emt 0:11:59]} exf4 {[%emt 0:00:31]} 22. exf5 {[%emt 0:00:47]} gxf5 {[%emt 0:00:33]} 23. gxf4 {[%emt 0:09:27]} Bh4 {[%emt 0:00:05]} 24. Kh1 {[%emt 0:01:08]} Nc5 {[%emt 0:04:42]} 25. Qf3 {[%emt 0:05:06]} Ne4 {[%emt 0:08:00]} 26. Ne3 {[%emt 0:09:10]} Rc5 {[%emt 0:01:55]} 27. Nxf5 {[%emt 0:08:57]} Rcxf5 {[%emt 0:01:29]} 28. Qxe4 {[%emt 0:00:23]} Qxe4+ {[%emt 0:03:02]} 29. Bxe4 {[%emt 0:00:09]} Rxf4 {[%emt 0:00:22]} 30. Rxf4 {[%emt 0:00:13]} Rxf4 {[%emt 0:00:05]} 31. Bxb7 {[%emt 0:00:07]} Rf2 {[%emt 0:00:36]} 32. Rxd6 {[%emt 0:12:25]} Rxb2 {[%emt 0:00:32]} 33. Bd5 {[%emt 0:01:26]} a5 {[%emt 0:02:05]} 34. Ra6 {[%emt 0:00:50]} Be1 {[%emt 0:01:01]} 35. Rxa5 {[%emt 0:02:04]} Bxc3 {[%emt 0:00:37]} 36. Ra8+ {[%emt 0:00:18]} Kg7 {[%emt 0:00:01]} 37. Ra7+ {[%emt 0:00:08]} Kh6 {[%emt 0:00:56]} 38. h3 {[%emt 0:01:30]} Be5 {[%emt 0:00:50]} 39. Re7 {[%emt 0:00:26]} Bf4 {[%emt 0:00:18]} 40. Kg1 {[%emt 0:00:00]} Kg6 {[%emt 0:00:00]} 41. a4 {[%emt 0:04:05]} h6 {[%emt 0:01:02]} 42. Kf1 {[%emt 0:01:41]} Kf6 {[%emt 0:06:52]} 43. Re8 {[%emt 0:02:25]} Bc7 {[%emt 0:03:11]} 44. Re6+ {[%emt 0:02:01]} Kg5 {[%emt 0:00:15]} 45. Re4 {[%emt 0:00:33]} Kf5 {[%emt 0:00:30]} 46. Rc4 {[%emt 0:01:00]} Bb6 {[%emt 0:01:18]} 47. Bc6 {[%emt 0:00:59]} Ke5 {[%emt 0:00:54]} 48. Bb5 {[%emt 0:02:04]} Rf2+ {[%emt 0:00:20]} 49. Ke1 {[%emt 0:00:06]} Rh2 {[%emt 0:00:21]} 50. Bd7 {[%emt 0:01:07]} Ba5+ {[%emt 0:05:44]} 51. Kf1 {[%emt 0:00:04]} Bb6 {[%emt 0:00:22]} 52. Bc8 {[%emt 0:02:10]} Rf2+ {[%emt 0:00:39]} 53. Ke1 {[%emt 0:00:33]} Rf4 {[%emt 0:00:24]} 54. Rc6 {[%emt 0:03:03]} Rf6 {[%emt 0:04:09]} 55. Rc2 {[%emt 0:00:28]} Ke4 {[%emt 0:03:27]} 56. Rb2 {[%emt 0:04:27]} Bd4 {[%emt 0:01:31]} 57. Rb3 {[%emt 0:01:48]} Rb6 {[%emt 0:00:12]} 58. Rb5 {[%emt 0:04:03]} Rxb5 {[%emt 0:00:15]} 59. axb5 {[%emt 0:00:04]} Kd5 {[%emt 0:01:03]} 1/2-1/2

[Event "80th ARM-ch 1st League 2019"]
[Site "Yerevan"]
[Date "2019.08.26"]
[Round "8.6"]
[White "Hayrapetyan, Hovik"]
[Black "Torosyan, Norayr"]
[Result "1-0"]
[ECO "A37"]
[WhiteElo "2453"]
[BlackElo "2365"]
[Annotator "ChessBase"]
[PlyCount "105"]
[EventDate "2019.08.18"]
[EventType "tourn"]
[EventCountry "ARM"]
[SourceTitle "playchess.com"]
[Source "ChessBase"]
[SourceQuality "1"]
[TimeControl "40/5400+30:1800+30"]

1. c4 {[%emt 0:00:00]} c5 {[%emt 0:00:00]} 2. Nc3 {[%emt 0:00:00]} Nc6 {[%emt 0:00:29]} 3. g3 {[%emt 0:00:00]} g6 {[%emt 0:00:31]} 4. Bg2 {[%emt 0:00:00]} Bg7 {[%emt 0:00:08]} 5. Nf3 {[%emt 0:01:24]} e5 {[%emt 0:00:29]} 6. O-O {[%emt 0:00:07]} Nge7 {[%emt 0:00:12]} 7. Ne1 {[%emt 0:00:30]} d6 {[%emt 0:02:20]} 8. Nc2 {[%emt 0:00:07]} h5 {[%emt 0:09:36]} 9. Rb1 {[%emt 0:10:42]} h4 {[%emt 0:06:11]} 10. b4 {[%emt 0:00:33]} Rb8 {[%emt 0:12:44]} 11. bxc5 {[%emt 0:03:13]} dxc5 {[%emt 0:00:03]} 12. Ne3 {[%emt 0:00:48]} b6 {[%emt 0:07:51]} 13. Ned5 {[%emt 0:02:15]} Be6 {[%emt 0:00:08]} 14. d3 {[%emt 0:03:05]} Qd7 {[%emt 0:05:59]} 15. Bg5 {[%emt 0:02:19]} Bh3 {[%emt 0:03:06]} 16. Nxe7 {[%emt 0:06:47]} Bxg2 {[%emt 0:02:49]} 17. Kxg2 {[%emt 0:02:37]} hxg3 {[%emt 0:01:13]} 18. h4 {[%emt 0:01:06]} Nxe7 {[%emt 0:02:50]} 19. Bxe7 {[%emt 0:00:26]} Qxe7 {[%emt 0:08:45]} 20. Qa4+ {[%emt 0:00:43]} Qd7 {[%emt 0:04:23]} 21. Qxd7+ {[%emt 0:00:49]} Kxd7 {[%emt 0:00:01]} 22. fxg3 {[%emt 0:00:07]} f5 {[%emt 0:00:40]} 23. e4 {[%emt 0:00:05]} Ke6 {[%emt 0:03:11]} 24. Nd5 {[%emt 0:05:42]} Bh6 {[%emt 0:04:32]} 25. a4 {[%emt 0:10:24]} Bd2 {[%emt 0:00:07]} 26. Rb2 {[%emt 0:00:56]} Ba5 {[%emt 0:00:04]} 27. Rbf2 {[%emt 0:00:43]} Rbf8 {[%emt 0:01:50]} 28. Kh3 {[%emt 0:02:52]} Rh7 {[%emt 0:02:48]} 29. Ne3 {[%emt 0:09:06]} Rhf7 {[%emt 0:01:50]} 30. Nd5 {[%emt 0:03:19]} Rh7 {[%emt 0:00:47]} 31. Kg2 {[%emt 0:00:30]} Bb4 {[%emt 0:09:27]} 32. Rh1 {[%emt 0:03:14]} Rfh8 {[%emt 0:03:15]} 33. Kf3 {[%emt 0:03:11]} Ba5 {[%emt 0:01:31]} 34. Ke2 {[%emt 0:00:35]} Rf7 {[%emt 0:01:32]} 35. Rhf1 {[%emt 0:01:22]} Rhf8 {[%emt 0:01:40]} 36. Ke3 {[%emt 0:07:33]} Rh8 {[%emt 0:00:50]} 37. Ke2 {[%emt 0:01:44]} Rhf8 {[%emt 0:02:12]} 38. h5 {[%emt 0:04:35]} fxe4 {[%emt 0:00:06]} 39. Nc7+ {[%emt 0:00:57]} Ke7 {[%emt 0:00:17]} 40. Rxf7+ {[%emt 0:00:00]} Rxf7 {[%emt 0:00:00]} 41. Rxf7+ {[%emt 0:00:27]} Kxf7 {[%emt 0:00:07]} 42. hxg6+ {[%emt 0:00:04]} Kxg6 {[%emt 0:00:03]} 43. dxe4 {[%emt 0:00:03]} Kh5 {[%emt 0:03:53]} 44. Kf3 {[%emt 0:00:41]} Kg5 {[%emt 0:01:42]} 45. Ne6+ {[%emt 0:06:03]} Kh5 {[%emt 0:08:44]} 46. Nd8 {[%emt 0:02:17]} b5 {[%emt 0:01:26]} 47. Nc6 {[%emt 0:00:27]} bxa4 {[%emt 0:00:01]} 48. Nxa5 {[%emt 0:00:07]} a3 {[%emt 0:00:02]} 49. Nb3 {[%emt 0:00:13]} a2 {[%emt 0:00:05]} 50. Kg2 {[%emt 0:00:11]} Kg4 {[%emt 0:01:09]} 51. Na1 {[%emt 0:00:05]} a5 {[%emt 0:06:05]} 52. Nc2 {[%emt 0:00:12]} a4 {[%emt 0:00:03]} 53. Na1 {[%emt 0:00:05]} 1-0

[Event "80th ARM-ch 1st League 2019"]
[Site "Yerevan"]
[Date "2019.08.26"]
[Round "8.7"]
[White "Hoghmrtsyan, Artur"]
[Black "Shahinyan, David"]
[Result "0-1"]
[ECO "A46"]
[WhiteElo "2317"]
[BlackElo "2452"]
[Annotator "ChessBase"]
[PlyCount "84"]
[EventDate "2019.08.18"]
[EventType "tourn"]
[EventCountry "ARM"]
[SourceTitle "playchess.com"]
[Source "ChessBase"]
[SourceQuality "1"]
[TimeControl "40/5400+30:1800+30"]

1. d4 {[%emt 0:00:00]} Nf6 {[%emt 0:00:00]} 2. Nf3 {[%emt 0:00:00]} c5 {[%emt 0:00:00]} 3. e3 {[%emt 0:03:11]} e6 {[%emt 0:03:08]} 4. Bd3 {[%emt 0:01:10]} b6 {[%emt 0:04:06]} 5. O-O {[%emt 0:00:32]} Bb7 {[%emt 0:00:01]} 6. b3 {[%emt 0:00:40]} Be7 {[%emt 0:02:10]} 7. Bb2 {[%emt 0:00:33]} d6 {[%emt 0:01:38]} 8. c4 {[%emt 0:02:20]} Nbd7 {[%emt 0:03:13]} 9. Nc3 {[%emt 0:01:59]} cxd4 {[%emt 0:01:27]} 10. exd4 {[%emt 0:03:33]} O-O {[%emt 0:00:15]} 11. Qe2 {[%emt 0:01:44]} Rc8 {[%emt 0:01:12]} 12. Rfe1 {[%emt 0:09:43]} Re8 {[%emt 0:00:46]} 13. a4 {[%emt 0:22:09]} Bf8 {[%emt 0:05:19]} 14. Ne4 {[%emt 0:14:53]} Nxe4 {[%emt 0:06:39]} 15. Bxe4 {[%emt 0:00:07]} Bxe4 {[%emt 0:00:01]} 16. Qxe4 {[%emt 0:00:07]} d5 {[%emt 0:00:00]} 17. Qe2 {[%emt 0:05:34]} dxc4 {[%emt 0:02:07]} 18. bxc4 {[%emt 0:00:05]} Qc7 {[%emt 0:00:01]} 19. Rec1 {[%emt 0:01:02]} Bd6 {[%emt 0:08:07]} 20. g3 {[%emt 0:08:49]} e5 {[%emt 0:04:38]} 21. d5 {[%emt 0:04:04]} Nc5 {[%emt 0:01:50]} 22. Ra2 {[%emt 0:04:02]} Qd7 {[%emt 0:02:12]} 23. Ba3 {[%emt 0:01:38]} Qg4 {[%emt 0:10:14]} 24. Bxc5 {[%emt 0:04:38]} Rxc5 {[%emt 0:00:05]} 25. Rb2 {[%emt 0:02:22]} Ra5 {[%emt 0:01:44]} 26. Ra2 {[%emt 0:03:31]} Bc5 {[%emt 0:01:56]} 27. Kg2 {[%emt 0:00:41]} Qd7 {[%emt 0:04:11]} 28. Ng5 {[%emt 0:01:34]} h6 {[%emt 0:03:43]} 29. Ne4 {[%emt 0:00:04]} Bd4 {[%emt 0:00:00]} 30. Qd1 {[%emt 0:01:08]} Rc8 {[%emt 0:02:18]} 31. f3 {[%emt 0:01:59]} f5 {[%emt 0:01:41]} 32. Nd2 {[%emt 0:00:28]} Be3 {[%emt 0:03:06]} 33. Rc3 {[%emt 0:00:19]} Bxd2 {[%emt 0:01:16]} 34. Qxd2 {[%emt 0:00:06]} Rxa4 {[%emt 0:00:04]} 35. Rxa4 {[%emt 0:00:05]} Qxa4 {[%emt 0:00:01]} 36. d6 {[%emt 0:00:06]} Qc6 {[%emt 0:00:23]} 37. c5 {[%emt 0:01:42]} bxc5 {[%emt 0:01:45]} 38. Qd3 {[%emt 0:01:23]} e4 {[%emt 0:05:24]} 39. Qc4+ {[%emt 0:00:12]} Kh8 {[%emt 0:00:20]} 40. fxe4 {[%emt 0:00:00]} fxe4 {[%emt 0:00:00]} 41. Qe6 {[%emt 0:03:44]} Rd8 {[%emt 0:03:42]} 42. Qe7 {[%emt 0:10:08]} e3+ {[%emt 0:01:32]} 0-1

[Event "80th ARM-ch 1st League 2019"]
[Site "Yerevan"]
[Date "2019.08.27"]
[Round "9.2"]
[White "Mikaelyan, Arman"]
[Black "Hoghmrtsyan, Artur"]
[Result "1/2-1/2"]
[ECO "A05"]
[WhiteElo "2454"]
[BlackElo "2317"]
[Annotator "ChessBase"]
[PlyCount "129"]
[EventDate "2019.08.18"]
[EventType "tourn"]
[EventCountry "ARM"]
[SourceTitle "playchess.com"]
[Source "ChessBase"]
[SourceQuality "1"]
[TimeControl "40/5400+30:1800+30"]

1. Nf3 {[%emt 0:00:00]} Nf6 {[%emt 0:01:40]} 2. g3 {[%emt 0:00:00]} d5 {[%emt 0:00:07]} 3. Bg2 {[%emt 0:00:00]} Nbd7 {[%emt 0:01:45]} 4. O-O {[%emt 0:01:40]} e5 {[%emt 0:00:28]} 5. d3 {[%emt 0:01:39]} Bd6 {[%emt 0:04:59]} 6. Nc3 {[%emt 0:00:19]} O-O {[%emt 0:01:30]} 7. e4 {[%emt 0:00:26]} dxe4 {[%emt 0:07:30]} 8. Nxe4 {[%emt 0:01:10]} Nxe4 {[%emt 0:00:06]} 9. dxe4 {[%emt 0:00:03]} Nf6 {[%emt 0:01:26]} 10. Nh4 {[%emt 0:01:57]} Bc5 {[%emt 0:03:57]} 11. Qe2 {[%emt 0:04:15]} c6 {[%emt 0:11:43]} 12. h3 {[%emt 0:07:06]} Ne8 {[%emt 0:17:54]} 13. c3 {[%emt 0:06:48]} a5 {[%emt 0:04:33]} 14. Kh2 {[%emt 0:03:30]} g6 {[%emt 0:08:14]} 15. Be3 {[%emt 0:12:32]} Bxe3 {[%emt 0:03:54]} 16. Qxe3 {[%emt 0:01:49]} Qe7 {[%emt 0:02:00]} 17. Nf3 {[%emt 0:01:45]} Ng7 {[%emt 0:02:17]} 18. Rad1 {[%emt 0:01:37]} f6 {[%emt 0:01:51]} 19. Rd2 {[%emt 0:10:08]} Be6 {[%emt 0:00:21]} 20. Rfd1 {[%emt 0:00:10]} Rfd8 {[%emt 0:01:52]} 21. b3 {[%emt 0:03:05]} a4 {[%emt 0:05:43]} 22. c4 {[%emt 0:00:27]} Bf7 {[%emt 0:01:05]} 23. Qb6 {[%emt 0:21:29]} Rxd2 {[%emt 0:00:09]} 24. Rxd2 {[%emt 0:00:11]} Ne6 {[%emt 0:00:27]} 25. h4 {[%emt 0:04:08]} Nc5 {[%emt 0:06:38]} 26. Ne1 {[%emt 0:06:05]} axb3 {[%emt 0:01:42]} 27. axb3 {[%emt 0:00:04]} Ra3 {[%emt 0:00:35]} 28. b4 {[%emt 0:02:04]} Ne6 {[%emt 0:00:37]} 29. Nc2 {[%emt 0:01:13]} Rb3 {[%emt 0:04:09]} 30. Qa7 {[%emt 0:01:11]} Nd4 {[%emt 0:00:39]} 31. Nxd4 {[%emt 0:01:47]} exd4 {[%emt 0:00:05]} 32. Rxd4 {[%emt 0:01:00]} Rxb4 {[%emt 0:00:13]} 33. Bh3 {[%emt 0:01:09]} Rb2 {[%emt 0:00:55]} 34. Kg1 {[%emt 0:01:46]} Rb1+ {[%emt 0:00:40]} 35. Kh2 {[%emt 0:00:49]} Rb2 {[%emt 0:00:02]} 36. Rd1 {[%emt 0:01:56]} Qxe4 {[%emt 0:01:44]} 37. Bg2 {[%emt 0:00:05]} Qe2 {[%emt 0:01:09]} 38. Rd8+ {[%emt 0:00:27]} Be8 {[%emt 0:00:33]} 39. Qd4 {[%emt 0:01:24]} Kf7 {[%emt 0:00:19]} 40. Qf4 {[%emt 0:00:00]} Qe7 {[%emt 0:00:00]} 41. Rc8 {[%emt 0:03:46]} Qe5 {[%emt 0:08:58]} 42. Qf3 {[%emt 0:07:48]} Bd7 {[%emt 0:02:49]} 43. Rd8 {[%emt 0:01:31]} Qe7 {[%emt 0:00:44]} 44. Rb8 {[%emt 0:00:51]} Kg7 {[%emt 0:05:39]} 45. Qd1 {[%emt 0:10:45]} Be6 {[%emt 0:10:37]} 46. Qd4 {[%emt 0:00:41]} Rb4 {[%emt 0:00:40]} 47. Qe3 {[%emt 0:01:30]} Qd6 {[%emt 0:03:45]} 48. Qa7 {[%emt 0:02:15]} Qc7 {[%emt 0:00:47]} 49. Re8 {[%emt 0:01:33]} Bf7 {[%emt 0:00:48]} 50. Qc5 {[%emt 0:01:11]} Bxe8 {[%emt 0:00:06]} 51. Qxb4 {[%emt 0:00:02]} Bf7 {[%emt 0:00:36]} 52. c5 {[%emt 0:00:21]} Qe7 {[%emt 0:00:40]} 53. Qd4 {[%emt 0:01:09]} Qe2 {[%emt 0:01:47]} 54. Qd7 {[%emt 0:01:27]} Qb2 {[%emt 0:01:37]} 55. Kg1 {[%emt 0:00:38]} f5 {[%emt 0:00:37]} 56. h5 {[%emt 0:00:59]} Qc1+ {[%emt 0:00:24]} 57. Kh2 {[%emt 0:00:13]} Qxc5 {[%emt 0:01:18]} 58. h6+ {[%emt 0:00:48]} Kg8 {[%emt 0:00:13]} 59. Qxb7 {[%emt 0:00:25]} Qf8 {[%emt 0:00:05]} 60. Qxc6 {[%emt 0:00:15]} Qxh6+ {[%emt 0:00:05]} 61. Kg1 {[%emt 0:00:02]} Qd2 {[%emt 0:00:38]} 62. Qa8+ {[%emt 0:00:04]} Kg7 {[%emt 0:00:08]} 63. Qa1+ {[%emt 0:00:02]} Kh6 {[%emt 0:00:47]} 64. Qf6 {[%emt 0:00:11]} Qe1+ {[%emt 0:01:36]} 65. Kh2 {[%emt 0:00:09]} 1/2-1/2

[Event "80th ARM-ch 1st League 2019"]
[Site "Yerevan"]
[Date "2019.08.27"]
[Round "9.3"]
[White "Torosyan, Norayr"]
[Black "Gharibyan, Mamikon"]
[Result "1/2-1/2"]
[ECO "C44"]
[WhiteElo "2365"]
[BlackElo "2365"]
[Annotator "NA"]
[PlyCount "91"]
[EventDate "2019.08.18"]
[EventType "tourn"]
[EventCountry "ARM"]
[SourceTitle "playchess.com"]
[Source "ChessBase"]
[SourceQuality "1"]
[TimeControl "40/5400+30:1800+30"]

1. e4 {[%emt 0:00:01]} e5 {[%emt 0:00:00]} 2. Nf3 {[%emt 0:00:39]} Nc6 {[%emt 0:00:17]} 3. d4 {[%emt 0:00:04]} exd4 {[%emt 0:00:12]} 4. Nxd4 {[%emt 0:00:04]} Nf6 {[%emt 0:00:09]} 5. Nc3 {[%emt 0:02:02]} Bb4 {[%emt 0:00:47]} 6. Nxc6 {[%emt 0:00:10]} bxc6 {[%emt 0:00:07]} 7. Bd3 {[%emt 0:00:03]} O-O {[%emt 0:05:18]} 8. O-O {[%emt 0:00:13]} Re8 {[%emt 0:03:50]} 9. Bg5 {[%emt 0:08:29]} h6 {[%emt 0:02:36]} 10. Bh4 {[%emt 0:00:04]} Be7 {[%emt 0:03:11]} 11. Re1 $146 {[%emt 0:14:33] C47: Scotch Four Knights and Four Knights with 4 g3} (11. e5 Nd5 12. Bxe7 Qxe7 13. Qd2 Qb4 14. Rae1 Qf4 15. Qd1 Nxc3 16. bxc3 d5 17. exd6 Bg4 18. Rxe8+ Rxe8 {½-½ (49) Nepomniachtchi,I (2705)-Dominguez Perez,L (2732) Berlin 2015}) 11... Rb8 {[%emt 0:08:28]} 12. Rb1 {[%emt 0:02:11]} d6 {[%emt 0:03:25]} 13. f4 {[%emt 0:03:46]} d5 {[%emt 0:17:58]} 14. Bxf6 {[%emt 0:06:44]} Bxf6 {[%emt 0:01:46]} 15. e5 {[%emt 0:00:19]} Be7 {[%emt 0:01:52]} 16. Qh5 {[%emt 0:01:55]} Bc5+ {[%emt 0:03:56]} 17. Kh1 {[%emt 0:00:30]} Bf2 {[%emt 0:06:43]} 18. Re2 {[%emt 0:16:33]} Qh4 {[%emt 0:00:54]} 19. Qxh4 {[%emt 0:00:19]} Bxh4 {[%emt 0:00:01]} 20. f5 {[%emt 0:00:12]} Be7 {[%emt 0:02:55]} 21. b3 {[%emt 0:02:19]} Rb4 {[%emt 0:08:19]} 22. Rf1 {[%emt 0:02:22]} Kf8 $11 {[%emt 0:08:06]} 23. g3 {[%emt 0:06:03]} Bb7 {[%emt 0:04:06]} 24. h3 {[%emt 0:12:07]} Ba8 {[%emt 0:04:47]} 25. Kh2 {[%emt 0:05:38]} h5 {[%emt 0:03:52]} 26. Na4 {[%emt 0:13:38]} Rd4 {[%emt 0:05:39]} 27. Rf3 {[%emt 0:01:41]} Rb4 {[%emt 0:02:13]} 28. c3 {[%emt 0:00:29]} Rbb8 {[%emt 0:00:12]} 29. Rf1 {[%emt 0:00:44]} f6 {[%emt 0:01:35]} 30. e6 {[%emt 0:00:04]} Bd6 {[%emt 0:00:11]} 31. h4 {[%emt 0:00:04]} c5 {[%emt 0:01:01]} 32. c4 {[%emt 0:00:06]} dxc4 {[%emt 0:00:46]} 33. Bxc4 {[%emt 0:00:04]} Bc6 {[%emt 0:00:31]} 34. Nb2 {[%emt 0:00:28]} Ke7 {[%emt 0:00:37]} 35. Nd3 {[%emt 0:01:01]} Rbd8 {[%emt 0:00:09]} 36. Kh3 {[%emt 0:01:41]} Rg8 {[%emt 0:00:45]} 37. Nf4 Bxf4 {[%emt 0:00:10]} 38. Rxf4 {[%emt 0:00:56]} g5 {[%emt 0:00:38]} 39. fxg6 {[%emt 0:00:06]} Rxg6 {[%emt 0:00:02]} 40. Rf5 {[%emt 0:00:00]} Rd1 {[%emt 0:00:00]} 41. Rxh5 {[%emt 0:10:07]} Rh1+ {[%emt 0:05:34]} 42. Rh2 {[%emt 0:01:01]} Rg1 {[%emt 0:00:20]} 43. Rh7+ {[%emt 0:01:27]} Ke8 {[%emt 0:00:55]} 44. Rh8+ {[%emt 0:00:48]} Ke7 {[%emt 0:00:09]} 45. Rh7+ {[%emt 0:00:15]} Ke8 {[%emt 0:00:43]} 46. Rh8+ {[%emt 0:02:32]} 1/2-1/2